fUSD/lending_fUSD_20241118
["ID","MTS","AMOUNT","RATE_DAILY","PERIOD"]
[342519182,1731953456413,-167.11,0.0001075,2]
[342519183,1731953456423,-1500.0,0.00010807,2]
[342519184,1731953456433,-500.0,0.00010821,2]
[342519185,1731953456443,-1500.0,0.00010841,2]
[342519186,1731953456452,-1500.0,0.00010848,2]
[342519187,1731953456462,-12045.47995705,0.0001089,2]
[342519188,1731953456472,-229.0,0.000109,2]
[342519189,1731953456481,-363.0,0.000109,2]
[342519190,1731953456491,-494.98529169,0.000109,2]
[342519191,1731953456501,-494.98529165,0.000109,2]
[342519192,1731953456510,-494.98529165,0.000109,2]
[342519193,1731953456520,-494.98529165,0.000109,2]
[342519194,1731953456529,-494.98529165,0.000109,2]
[342519195,1731953456539,-494.98529165,0.000109,2]
[342519196,1731953456548,-494.98529165,0.000109,2]
[342519197,1731953456558,-494.98529165,0.000109,2]
[342519198,1731953456567,-587.0,0.00010915,2]
[342519199,1731953456577,-3000.0,0.00010934,5]
[342519200,1731953456587,-2999.99999901,0.00010948,2]
[342519201,1731953456597,-150.06924011,0.0001095,2]
[342519202,1731953456607,-500.0,0.00010958,2]
[342519203,1731953456617,-500.0,0.00010958,2]
[342519204,1731953456627,-500.0,0.00010958,2]
[342519205,1731953456637,-500.0,0.00010958,2]
[342519206,1731953456650,-500.0,0.00010958,2]
[342519207,1731953456660,-500.0,0.00010958,2]
[342519208,1731953456670,-500.0,0.00010958,2]
[342519209,1731953456680,-500.0,0.00010958,2]
[342519210,1731953456689,-500.0,0.00010958,2]
[342519211,1731953456699,-500.0,0.00010958,2]
[342519212,1731953456708,-500.0,0.00010958,2]
[342519213,1731953456718,-500.0,0.00010958,2]
[342519214,1731953456727,-500.0,0.00010958,2]
[342519215,1731953456736,-500.0,0.00010958,2]
[342519216,1731953456746,-500.0,0.00010958,2]
[342519217,1731953456755,-500.0,0.00010958,2]
[342519218,1731953456764,-500.0,0.00010958,2]
[342519219,1731953456774,-500.0,0.00010958,2]
[342519220,1731953456783,-500.0,0.00010958,2]
[342519221,1731953456792,-500.0,0.00010958,2]
[342519222,1731953456802,-500.0,0.00010958,2]
[342519223,1731953456811,-500.0,0.00010958,2]
[342519224,1731953456821,-500.0,0.00010958,2]
[342519225,1731953456831,-500.0,0.00010958,2]
[342519226,1731953456841,-500.0,0.00010958,2]
[342519227,1731953456852,-500.0,0.00010958,2]
[342519228,1731953456862,-500.0,0.00010958,2]
[342519229,1731953456872,-500.0,0.00010958,2]
[342519230,1731953456882,-521.4915922,0.00010958,2]
[342519231,1731953456892,-500.0,0.00010958,2]
[342519232,1731953456904,-500.0,0.00010958,2]
[342519233,1731953456919,-500.0,0.00010958,2]
[342519234,1731953456928,-500.0,0.00010958,2]
[342519235,1731953456938,-500.0,0.00010958,2]
[342519236,1731953456950,-500.0,0.00010958,2]
[342519237,1731953456960,-500.0,0.00010958,2]
[342519238,1731953456969,-500.0,0.00010958,2]
[342519239,1731953456980,-500.0,0.00010958,2]
[342519240,1731953456991,-500.0,0.00010958,2]
[342519241,1731953457000,-500.0,0.00010958,2]
[342519242,1731953457009,-500.0,0.00010958,2]
[342519243,1731953457018,-500.0,0.00010958,2]
[342519244,1731953457027,-500.0,0.00010958,2]
[342519245,1731953457037,-500.0,0.00010958,2]
[342519246,1731953457047,-500.0,0.00010958,2]
[342519247,1731953457056,-500.0,0.00010958,2]
[342519248,1731953457066,-500.0,0.00010958,2]
[342519249,1731953457075,-500.0,0.00010958,2]
[342519250,1731953457084,-500.0,0.00010958,2]
[342519251,1731953457095,-500.0,0.00010958,2]
[342519252,1731953457104,-500.0,0.00010958,2]
[342519253,1731953457114,-500.0,0.00010958,2]
[342519254,1731953457123,-500.0,0.00010958,2]
[342519255,1731953457133,-500.0,0.00010958,2]
[342519256,1731953457142,-500.0,0.00010958,2]
[342519257,1731953457154,-500.0,0.00010958,2]
[342519258,1731953457163,-500.0,0.00010958,2]
[342519259,1731953457172,-350.0,0.00010958,2]
[342519260,1731953457182,-500.0,0.00010958,2]
[342519261,1731953457192,-303.54349999,0.00010958,2]
[342519262,1731953457201,-370.53018955,0.00010958,2]
[342519263,1731953457211,-592.28177191,0.00010958,2]
[342519264,1731953457220,-500.0,0.00010958,2]
[342519265,1731953457229,-493.67202607,0.00010958,2]
[342519266,1731953457239,-500.0,0.00010958,2]
[342519267,1731953457248,-500.0,0.00010958,2]
[342519268,1731953457258,-500.0,0.00010958,2]
[342519269,1731953457268,-500.0,0.00010958,2]
[342519270,1731953457277,-500.0,0.00010958,2]
[342519271,1731953457287,-500.0,0.00010958,2]
[342519272,1731953457296,-160.39,0.00010958,2]
[342519273,1731953457306,-205.24833871,0.00010958,2]
[342519274,1731953457315,-630.71895635,0.00010958,2]
[342519275,1731953457325,-3025.503804,0.00010958,2]
[342519276,1731953457334,-3025.503804,0.00010958,2]
[342519277,1731953457343,-3025.503804,0.00010958,2]
[342519278,1731953457353,-3025.503804,0.00010958,2]
[342519279,1731953457362,-3025.503804,0.00010958,2]
[342519280,1731953457373,-3025.503804,0.00010958,2]
[342519281,1731953457382,-3025.503804,0.00010958,2]
[342519282,1731953457392,-3025.503804,0.00010958,2]
[342519283,1731953457403,-3025.503804,0.00010958,2]
[342519284,1731953457413,-3025.503804,0.00010958,2]
[342519285,1731953457422,-3025.503804,0.00010958,2]
[342519286,1731953457431,-3025.503804,0.00010958,2]
[342519287,1731953457441,-3025.503804,0.00010958,2]
[342519288,1731953457452,-3025.503804,0.00010958,2]
[342519289,1731953457463,-500.0,0.00010958,2]
[342519290,1731953457475,-500.0,0.00010958,2]
[342519291,1731953457488,-500.0,0.00010958,2]
[342519292,1731953457500,-500.0,0.00010958,2]
[342519293,1731953457511,-500.0,0.00010958,2]
[342519294,1731953457521,-338.40189454,0.00010958,2]
[342519295,1731953457532,-500.0,0.00010958,2]
[342519296,1731953457544,-3267.54410833,0.00010958,2]
[342519297,1731953457555,-3267.54410833,0.00010958,2]
[342519298,1731953457568,-3267.54410833,0.00010958,2]
[342519299,1731953457580,-3267.54410833,0.00010958,2]
[342519300,1731953457592,-3267.54410833,0.00010958,2]
[342519301,1731953457604,-3267.54410833,0.00010958,2]
[342519302,1731953457616,-3267.54410833,0.00010958,2]
[342519303,1731953457628,-3267.54410833,0.00010958,2]
[342519304,1731953457639,-3267.54410833,0.00010958,2]
[342519305,1731953457650,-3267.54410833,0.00010958,2]
[342519306,1731953457662,-500.0,0.00010958,2]
[342519307,1731953457672,-500.0,0.00010958,2]
[342519308,1731953457682,-500.0,0.00010958,2]
[342519309,1731953457692,-500.0,0.00010958,2]
[342519310,1731953457704,-290.85774364,0.00010958,2]
[342519311,1731953457715,-500.0,0.00010958,2]
[342519312,1731953457726,-500.0,0.00010958,2]
[342519313,1731953457738,-500.0,0.00010958,2]
[342519314,1731953457750,-500.0,0.00010958,2]
[342519315,1731953457763,-607.10577512,0.00010958,2]
[342519316,1731953457775,-397.00174569,0.00010958,2]
[342519317,1731953457788,-500.0,0.00010958,2]
[342519318,1731953457800,-191.48792496,0.00010958,2]
[342519319,1731953457813,-500.0,0.00010958,2]
[342519320,1731953457825,-500.0,0.00010958,2]
[342519321,1731953457836,-161.35973419,0.00010958,2]
[342519322,1731953457847,-500.0,0.00010958,2]
[342519323,1731953457859,-500.0,0.00010958,2]
[342519324,1731953457871,-500.0,0.00010958,2]
[342519325,1731953457883,-500.0,0.00010958,2]
[342519326,1731953457894,-500.0,0.00010958,2]
[342519327,1731953457906,-500.0,0.00010958,2]
[342519328,1731953457922,-500.0,0.00010958,2]
[342519329,1731953457933,-500.0,0.00010958,2]
[342519330,1731953457946,-500.0,0.00010958,2]
[342519331,1731953457959,-500.0,0.00010958,2]
[342519332,1731953457970,-500.0,0.00010958,2]
[342519333,1731953457981,-500.0,0.00010958,2]
[342519334,1731953457995,-500.0,0.00010958,2]
[342519335,1731953458007,-500.0,0.00010958,2]
[342519336,1731953458020,-500.0,0.00010958,2]
[342519337,1731953458031,-500.0,0.00010958,2]
[342519338,1731953458042,-3396.88766177,0.00010958,2]
[342519339,1731953458054,-500.0,0.00010958,2]
[342519340,1731953458064,-3396.88766177,0.00010958,2]
[342519341,1731953458074,-500.0,0.00010958,2]
[342519342,1731953458085,-3396.88766177,0.00010958,2]
[342519343,1731953458095,-500.0,0.00010958,2]
[342519344,1731953458106,-3396.88766177,0.00010958,2]
[342519345,1731953458118,-500.0,0.00010958,2]
[342519346,1731953458131,-3396.88766177,0.00010958,2]
[342519347,1731953458143,-500.0,0.00010958,2]
[342519348,1731953458155,-3396.88766177,0.00010958,2]
[342519349,1731953458166,-3396.88766177,0.00010958,2]
[342519350,1731953458176,-500.0,0.00010958,2]
[342519351,1731953458186,-3396.88766177,0.00010958,2]
[342519352,1731953458196,-500.0,0.00010958,2]
[342519353,1731953458207,-3396.88766177,0.00010958,2]
[342519354,1731953458218,-500.0,0.00010958,2]
[342519355,1731953458229,-3396.88766177,0.00010958,2]
[342519356,1731953458241,-500.0,0.00010958,2]
[342519357,1731953458253,-3396.88766177,0.00010958,2]
[342519358,1731953458265,-3396.88766177,0.00010958,2]
[342519359,1731953458277,-3396.88766177,0.00010958,2]
[342519360,1731953458287,-3396.88766177,0.00010958,2]
[342519361,1731953458299,-3396.88766177,0.00010958,2]
[342519362,1731953458309,-3396.88766177,0.00010958,2]
[342519363,1731953458320,-500.0,0.00010958,2]
[342519364,1731953458332,-3396.88766177,0.00010958,2]
[342519365,1731953458343,-3396.88766177,0.00010958,2]
[342519366,1731953458354,-3396.88766177,0.00010958,2]
[342519367,1731953458365,-3396.88766177,0.00010958,2]
[342519368,1731953458375,-3396.88766177,0.00010958,2]
[342519369,1731953458386,-3396.88766177,0.00010958,2]
[342519370,1731953458397,-3396.88766177,0.00010958,2]
[342519371,1731953458411,-3396.88766177,0.00010958,2]
[342519372,1731953458422,-500.0,0.00010958,2]
[342519373,1731953458433,-3396.88766177,0.00010958,2]
[342519374,1731953458445,-3396.88766177,0.00010958,2]
[342519375,1731953458456,-3396.88766177,0.00010958,2]
[342519376,1731953458467,-500.0,0.00010958,2]
[342519377,1731953458478,-500.0,0.00010958,2]
[342519378,1731953458489,-500.0,0.00010958,2]
[342519379,1731953458500,-499.99999999,0.00010958,2]
[342519380,1731953458511,-500.0,0.00010958,2]
[342519381,1731953458522,-500.0,0.00010958,2]
[342519382,1731953458533,-500.0,0.00010958,2]
[342519383,1731953458544,-500.0,0.00010958,2]
[342519384,1731953458555,-500.0,0.00010958,2]
[342519385,1731953458567,-500.0,0.00010958,2]
[342519386,1731953458578,-500.0,0.00010958,2]
[342519387,1731953458589,-500.0,0.00010958,2]
[342519388,1731953458601,-500.0,0.00010958,2]
[342519389,1731953458612,-500.0,0.00010958,2]
[342519390,1731953458623,-500.0,0.00010958,2]
[342519391,1731953458634,-500.0,0.00010958,2]
[342519392,1731953458645,-500.0,0.00010958,2]
[342519393,1731953458659,-500.0,0.00010958,2]
[342519394,1731953458670,-500.0,0.00010958,2]
[342519395,1731953458681,-500.0,0.00010958,2]
[342519396,1731953458694,-500.0,0.00010958,2]
[342519397,1731953458705,-500.0,0.00010958,2]
[342519398,1731953458715,-500.0,0.00010958,2]
[342519399,1731953458726,-500.0,0.00010958,2]
[342519400,1731953458736,-500.0,0.00010958,2]
[342519401,1731953458747,-500.0,0.00010958,2]
[342519402,1731953458757,-500.0,0.00010958,2]
[342519403,1731953458769,-532.93020654,0.00010958,2]
[342519404,1731953458780,-500.0,0.00010958,2]
[342519405,1731953458790,-500.0,0.00010958,2]
[342519406,1731953458801,-500.0,0.00010958,2]
[342519407,1731953458811,-500.0,0.00010958,2]
[342519408,1731953458823,-500.0,0.00010958,2]
[342519409,1731953458834,-500.0,0.00010958,2]
[342519410,1731953458845,-500.0,0.00010958,2]
[342519411,1731953458855,-499.99999999,0.00010958,2]
[342519412,1731953458866,-500.0,0.00010958,2]
[342519413,1731953458877,-500.0,0.00010958,2]
[342519414,1731953458887,-500.0,0.00010958,2]
[342519415,1731953458898,-500.0,0.00010958,2]
[342519416,1731953458912,-500.0,0.00010958,2]
[342519417,1731953458924,-500.0,0.00010958,2]
[342519418,1731953458935,-550.0,0.00010958,2]
[342519419,1731953458946,-500.0,0.00010958,2]
[342519420,1731953458958,-500.0,0.00010958,2]
[342519421,1731953458968,-500.0,0.00010958,2]
[342519422,1731953458979,-500.0,0.00010958,2]
[342519423,1731953458991,-500.0,0.00010958,2]
[342519424,1731953459003,-500.0,0.00010958,2]
[342519425,1731953459015,-200.0,0.00010959,2]
[342519426,1731953459025,-200.0,0.00010959,2]
[342519427,1731953459036,-200.0,0.00010959,2]
[342519428,1731953459047,-200.0,0.00010959,2]
[342519429,1731953459057,-200.0,0.00010959,2]
[342519430,1731953459069,-811.58,0.00010959,2]
[342519431,1731953459079,-2090.48,0.00010959,2]
[342519432,1731953459091,-150.0,0.00010959,2]
[342519433,1731953459102,-150.0,0.00010959,2]
[342519434,1731953459112,-525.02,0.00010959,2]
[342519435,1731953459123,-5601.22,0.00010959,2]
[342519436,1731953459134,-1161.31,0.00010959,2]
[342519437,1731953459145,-30625.12,0.00010959,2]
[342519438,1731953459156,-3727.97,0.00010959,2]
[342519439,1731953459166,-3106.64,0.00010959,2]
[342519440,1731953459176,-2588.87,0.00010959,2]
[342519441,1731953459187,-2157.39,0.00010959,2]
[342519442,1731953459198,-500.0,0.0001096,2]
[342519443,1731953459209,-500.0,0.0001096,2]
[342519444,1731953459219,-441.41226394,0.0001096,2]
[342519445,1731953459230,-939.59672744,0.0001096,2]
[342519446,1731953459240,-939.59672744,0.0001096,2]
[342519447,1731953459251,-939.59672744,0.0001096,2]
[342519448,1731953459262,-939.59672744,0.0001096,2]
[342519449,1731953459274,-939.59672744,0.0001096,2]
[342519450,1731953459285,-939.59672744,0.0001096,2]
[342519451,1731953459296,-939.59672744,0.0001096,2]
[342519452,1731953459306,-939.59672744,0.0001096,2]
[342519453,1731953459318,-939.59672744,0.0001096,2]
[342519454,1731953459328,-939.59672744,0.0001096,2]
[342519455,1731953459339,-939.59672744,0.0001096,2]
[342519456,1731953459349,-939.59672744,0.0001096,2]
[342519457,1731953459360,-939.59672744,0.0001096,2]
[342519458,1731953459371,-939.59672744,0.0001096,2]
[342519459,1731953459382,-939.59672744,0.0001096,2]
[342519460,1731953459393,-939.59672744,0.0001096,2]
[342519461,1731953459406,-939.59672744,0.0001096,2]
[342519462,1731953459416,-939.59672744,0.0001096,2]
[342519463,1731953459427,-939.59672744,0.0001096,2]
[342519464,1731953459438,-939.59,0.0001096,2]
[342519465,1731953459448,-1409.39509116,0.0001096,2]
[342519466,1731953459459,-1409.39509116,0.0001096,2]
[342519467,1731953459470,-1409.39509116,0.0001096,2]
[342519468,1731953459481,-1409.39509116,0.0001096,2]
[342519469,1731953459491,-1409.39509116,0.0001096,2]
[342519470,1731953459502,-1409.39509116,0.0001096,2]
[342519471,1731953459512,-1409.39509116,0.0001096,2]
[342519472,1731953459523,-1409.39509116,0.0001096,2]
[342519473,1731953459534,-1409.39509116,0.0001096,2]
[342519474,1731953459545,-1409.39509116,0.0001096,2]
[342519475,1731953459556,-1409.39509116,0.0001096,2]
[342519476,1731953459566,-1409.39509116,0.0001096,2]
[342519477,1731953459577,-1409.39509116,0.0001096,2]
[342519478,1731953459587,-1409.39509116,0.0001096,2]
[342519479,1731953459598,-1409.39509116,0.0001096,2]
[342519480,1731953459609,-1409.39509116,0.0001096,2]
[342519481,1731953459619,-1409.39509116,0.0001096,2]
[342519482,1731953459630,-1409.39509116,0.0001096,2]
[342519483,1731953459640,-1409.39509116,0.0001096,2]
[342519484,1731953459652,-1409.39,0.0001096,2]
[342519485,1731953459663,-421.11266423,0.00010975,2]
[342519486,1731953459674,-150.0,0.00010999,2]
[342519487,1731953459684,-1000.0,0.00010999,2]
[342519488,1731953459695,-1000.0,0.00010999,2]
[342519489,1731953459705,-830.79,0.00010999,2]
[342519490,1731953459715,-1000.0,0.00010999,2]
[342519491,1731953459727,-3905.0,0.00011,2]
[342519492,1731953459738,-5033.0,0.00011,2]
[342519493,1731953459748,-11110953.66508059,0.00011,2]
[342519494,1731953459806,-11218.4922,0.00011,2]
[342519495,1731953459889,-1797.83,0.00010959,2]
[342519496,1731953459901,-89671.623358,0.00011,2]
[342519497,1731953459921,-5265.99999998,0.00011,2]
[342519498,1731953459940,-2784.3599997,0.00011,2]
[342519499,1731953459955,-441.38691734,0.00011,2]
[342519500,1731953459967,-431.78570185,0.00011,2]
[342519501,1731953459987,-4938.76860355,0.00011,2]
[342519502,1731953460000,-1500.0,0.00011,2]
[342519503,1731953460012,-7651.91581175,0.00011,2]
[342519504,1731953460024,-366.498113,0.00011,2]
[342519505,1731953460038,-3982.55,0.00011,2]
[342519506,1731953460052,-257.82970698,0.00011,2]
[342519507,1731953460064,-392.7750027,0.00011,2]
[342519508,1731953460078,-1497.4147501,0.00011,2]
[342519509,1731953460090,-6766.58234966,0.00011,2]
[342519510,1731953460240,-1079.36314802,9.798e-05,2]
[342519511,1731953460251,-32520.86092557,0.00011,2]
[342519512,1731953460265,-11652.05778037,0.00011,2]
[342519513,1731953460278,-30714.77704,0.00011,2]
[342519514,1731953460293,-6583.2394504,0.00011,2]
[342519515,1731953460307,-3928.67065319,0.00011,2]
[342519516,1731953460320,-5789463.3870025,0.00011,2]
[342519517,1731953460344,-53808.62922,0.00011,2]
[342519518,1731953460359,-1044.3,0.00011,2]
[342519519,1731953460375,-744.79392293,0.00011,2]
[342519520,1731953460392,-3500.0,0.00011,2]
[342519521,1731953460413,-41723.94887126,0.00011,2]
[342519522,1731953460514,-2047.75000387,0.00011,2]
[342519523,1731953460526,-3190.53589971,0.00011,2]
[342519524,1731953460540,-12500.35302604,0.00011,2]
[342519525,1731953460553,-55630.9113,0.00011,2]
[342519526,1731953460565,-68070.16477264,0.00011,2]
[342519527,1731953460585,-1199.39416244,0.00011,2]
[342519528,1731953460598,-1057.6,0.00011,2]
[342519529,1731953498632,200.0,8.22e-05,2]
[342519531,1731953540300,300.0,8.22e-05,2]
[342519532,1731953624191,500.0,8.22e-05,2]
[342519534,1731953658374,441.41226394,8.22e-05,2]
[342519535,1731953664915,500.0,8.22e-05,2]
[342519536,1731953914764,693.16,8.219e-05,2]
[342519539,1731954529300,233.22123335,0.0002,60]
[342520152,1731954597017,632.22,8.446e-05,2]
[342520176,1731954632341,-200.0,8.518e-05,2]
[342520177,1731954632351,-7499.26,8.571e-05,2]
[342520178,1731954632361,-152.61270679,8.667e-05,2]
[342520179,1731954632372,-427.51,8.668e-05,2]
[342520180,1731954632381,-300.0,8.817e-05,2]
[342520181,1731954632391,-1500.0,8.818e-05,2]
[342520182,1731954632401,-7997.17,8.818e-05,2]
[342520183,1731954632410,-7971.0,8.855e-05,2]
[342520184,1731954632420,-3557.44,8.905e-05,2]
[342520185,1731954632429,-572.49,8.927e-05,2]
[342520186,1731954632438,-2000.0,8.954e-05,2]
[342520187,1731954632447,-250.0,8.977e-05,2]
[342520188,1731954632457,-183.2,9e-05,2]
[342520189,1731954632467,-250.0,9.019e-05,2]
[342520190,1731954632476,-150.0,9.136e-05,2]
[342520191,1731954632486,-300.0,9.137e-05,2]
[342520192,1731954632496,-12067.78,9.137e-05,2]
[342520193,1731954632505,-250.0,9.141e-05,2]
[342520194,1731954632517,-1000.0,9.169e-05,2]
[342520195,1731954632525,-280.19,9.211e-05,2]
[342520196,1731954632535,-248.0,9.24e-05,2]
[342520197,1731954632544,-203.0,9.24e-05,2]
[342520198,1731954632554,-150.0,9.361e-05,2]
[342520199,1731954632563,-248.0,9.38e-05,2]
[342520200,1731954632573,-203.0,9.38e-05,2]
[342520201,1731954632582,-1000.0,9.399e-05,2]
[342520202,1731954632602,-18123.5621,9.4e-05,2]
[342520203,1731954632613,-3575.1911,9.4e-05,2]
[342520204,1731954632623,-2637.1654,9.4e-05,2]
[342520205,1731954632633,-673.987,9.4e-05,2]
[342520206,1731954632643,-1065.6337,9.4e-05,2]
[342520207,1731954632653,-5741.3175,9.4e-05,2]
[342520208,1731954632663,-525.36,9.4e-05,2]
[342520209,1731954632673,-263.6615,9.4e-05,2]
[342520210,1731954632683,-633.2166,9.4e-05,2]
[342520211,1731954632692,-784.9271,9.4e-05,2]
[342520212,1731954632702,-500.0,9.473e-05,2]
[342520213,1731954632711,-171.59537088,9.473e-05,2]
[342520215,1731954632721,-157586.1715,9.5e-05,2]
[342520217,1731954632731,-108031.9356,9.5e-05,2]
[342520219,1731954632740,-14263.2413,9.5e-05,2]
[342520221,1731954632749,-18213.0,9.527e-05,2]
[342520223,1731954632761,-248.0,9.53e-05,2]
[342520226,1731954632772,-203.0,9.53e-05,2]
[342520227,1731954632781,-167.12,9.616e-05,2]
[342520229,1731954632791,-248.0,9.68e-05,2]
[342520231,1731954632801,-203.0,9.68e-05,2]
[342520234,1731954632811,-420.0,9.698e-05,2]
[342520235,1731954632822,-427.51,9.751e-05,2]
[342520238,1731954632832,-8881.8424,9.763e-05,2]
[342520239,1731954632841,-89783.81409299,9.8e-05,2]
[342520241,1731954632852,-248.0,9.82e-05,2]
[342520243,1731954632862,-203.0,9.82e-05,2]
[342520245,1731954632872,-500.0,9.863e-05,2]
[342520247,1731954632882,-185.34559595,9.863e-05,2]
[342520249,1731954632892,-500.0,9.863e-05,2]
[342520251,1731954632901,-502.17,9.863e-05,2]
[342520253,1731954632910,-500.0,9.863e-05,2]
[342520254,1731954632920,-500.0,9.863e-05,2]
[342520255,1731954632929,-500.0,9.863e-05,2]
[342520256,1731954632939,-500.0,9.863e-05,2]
[342520257,1731954632949,-500.0,9.863e-05,2]
[342520258,1731954632958,-500.0,9.863e-05,2]
[342520259,1731954632968,-500.0,9.863e-05,2]
[342520260,1731954632977,-500.0,9.863e-05,2]
[342520261,1731954632987,-500.0,9.863e-05,2]
[342520262,1731954632998,-500.0,9.863e-05,2]
[342520263,1731954633007,-500.0,9.863e-05,2]
[342520264,1731954633019,-745.04,9.863e-05,2]
[342520265,1731954633028,-500.0,9.863e-05,2]
[342520266,1731954633038,-500.0,9.863e-05,2]
[342520267,1731954633048,-938.46,9.863e-05,2]
[342520268,1731954633058,-500.0,9.863e-05,2]
[342520269,1731954633068,-500.0,9.863e-05,2]
[342520270,1731954633078,-500.0,9.863e-05,2]
[342520271,1731954633088,-500.0,9.863e-05,2]
[342520272,1731954633098,-500.0,9.863e-05,2]
[342520273,1731954633107,-500.0,9.863e-05,2]
[342520274,1731954633118,-500.0,9.863e-05,2]
[342520275,1731954633128,-500.0,9.863e-05,2]
[342520276,1731954633137,-500.0,9.863e-05,2]
[342520277,1731954633147,-500.0,9.863e-05,2]
[342520278,1731954633156,-500.0,9.863e-05,2]
[342520279,1731954633166,-500.0,9.863e-05,2]
[342520280,1731954633176,-500.0,9.863e-05,2]
[342520281,1731954633185,-500.0,9.863e-05,2]
[342520282,1731954633194,-158.91823841,9.863e-05,2]
[342520283,1731954633204,-500.0,9.863e-05,2]
[342520284,1731954633213,-500.0,9.863e-05,2]
[342520285,1731954633223,-500.0,9.863e-05,2]
[342520286,1731954633232,-500.0,9.863e-05,2]
[342520287,1731954633241,-500.0,9.863e-05,2]
[342520288,1731954633251,-500.0,9.863e-05,2]
[342520289,1731954633262,-500.0,9.863e-05,2]
[342520290,1731954633272,-500.0,9.863e-05,2]
[342520291,1731954633283,-500.00140186,9.863e-05,2]
[342520292,1731954633294,-500.0,9.863e-05,2]
[342520293,1731954633305,-500.0,9.863e-05,2]
[342520294,1731954633315,-500.0,9.863e-05,2]
[342520295,1731954633325,-500.0,9.863e-05,2]
[342520296,1731954633335,-500.0,9.863e-05,2]
[342520297,1731954633345,-555.34,9.863e-05,2]
[342520298,1731954633354,-500.0,9.863e-05,2]
[342520299,1731954633364,-500.0,9.863e-05,2]
[342520300,1731954633375,-500.0,9.863e-05,2]
[342520301,1731954633385,-500.0,9.863e-05,2]
[342520302,1731954633394,-500.0,9.863e-05,2]
[342520303,1731954633405,-500.0,9.863e-05,2]
[342520304,1731954633415,-500.0,9.863e-05,2]
[342520305,1731954633424,-500.0,9.863e-05,2]
[342520306,1731954633434,-500.0,9.863e-05,2]
[342520307,1731954633444,-500.0,9.863e-05,2]
[342520308,1731954633453,-500.0,9.863e-05,2]
[342520309,1731954633463,-594.93861798,9.863e-05,2]
[342520310,1731954633473,-500.0,9.863e-05,2]
[342520311,1731954633483,-500.0,9.863e-05,2]
[342520312,1731954633492,-500.0,9.863e-05,2]
[342520313,1731954633501,-500.0,9.863e-05,2]
[342520314,1731954633513,-500.0,9.863e-05,2]
[342520315,1731954633523,-500.0,9.863e-05,2]
[342520316,1731954633532,-500.0,9.863e-05,2]
[342520317,1731954633543,-500.0,9.863e-05,2]
[342520318,1731954633552,-500.0,9.863e-05,2]
[342520319,1731954633562,-500.0,9.863e-05,2]
[342520320,1731954633572,-500.0,9.863e-05,2]
[342520321,1731954633582,-500.0,9.863e-05,2]
[342520322,1731954633591,-500.0,9.863e-05,2]
[342520323,1731954633601,-500.0,9.863e-05,2]
[342520324,1731954633611,-500.0,9.863e-05,2]
[342520325,1731954633622,-500.0,9.863e-05,2]
[342520326,1731954633631,-500.0,9.863e-05,2]
[342520327,1731954633642,-500.0,9.863e-05,2]
[342520328,1731954633652,-500.0,9.863e-05,2]
[342520329,1731954633663,-500.0,9.863e-05,2]
[342520330,1731954633672,-500.0,9.863e-05,2]
[342520331,1731954633682,-500.0,9.863e-05,2]
[342520332,1731954633692,-500.0,9.863e-05,2]
[342520333,1731954633702,-500.0,9.863e-05,2]
[342520334,1731954633712,-500.0,9.863e-05,2]
[342520335,1731954633723,-500.0,9.863e-05,2]
[342520336,1731954633733,-500.0,9.863e-05,2]
[342520337,1731954633743,-500.0,9.863e-05,2]
[342520338,1731954633753,-236.42019258,9.863e-05,2]
[342520339,1731954633765,-500.0,9.863e-05,2]
[342520340,1731954633776,-500.0,9.863e-05,2]